[Event "GER-ch Youth-U16 2022"]
[Site "Willingen"]
[Date "2022.06.10"]
[Round "8.15"]
[White "Tovmasyan, Minas"]
[Black "Guo, Philipp Ziming"]
[Result "0-1"]
[ECO "A46"]
[WhiteElo "1933"]
[BlackElo "1825"]
[Annotator "TA"]
[PlyCount "86"]
[EventDate "2022.06.05"]
[EventType "swiss"]
[EventRounds "9"]
[EventCountry "GER"]
[SourceTitle "playchess.com"]
[Source "ChessBase"]
[SourceQuality "1"]
[TimeControl "40/4500+30:900+30"]

{[%evp 13,86,17,12,0,12,-26,18,20,20,-25,-8,-54,-15,-49,-7,-11,29,-11,-11,-10,-8,-14,-15,-13,-7,-13,-14,-95,-97,-130,-124,-151,-147,-151,-149,-166,-152,-161,-155,-165,-159,-216,-196,-227,-226,-207,-187,-210,-194,-240,-245,-243,-215,-337,-333,-339,-330,-282,-258,-5583,-5297,-4702,-2840,-29968,-29968,-29966,-29962,-29977,-29978,-29977,-29977,-29977,-29976,-29976,-29977]} 1. d4 {[%emt 0:00:00]} Nf6 {[%emt 0:00:00]} 2. Nf3 {[%emt 0:00:00]} e6 {[%emt 0:00:00]} 3. g3 {[%emt 0:00:00]} c5 {[%emt 0:00:00]} 4. Bg2 {[%emt 0:00:00]} cxd4 {[%emt 0:00:00]} 5. Nxd4 {[%emt 0:00:00]} d5 {[%emt 0:00:00]} 6. O-O {[%emt 0:00:00]} e5 {[%emt 0:00:00]} 7. Nb3 {[%emt 0:00:00]} Be6 {[%emt 0:00:00]} 8. Bg5 {[%emt 0:00:00] Threatening Bxf6. D02: 1 d4 d5 2 Nf3 sidelines, including 2...Nf6 3 g3 and 2...Nf6 3 Bf4.} Nbd7 {[%emt 0:00:00] [#]} 9. Qd3 $146 {[%emt 0:12:26]} ({Predecessor:} 9. Nc3 h6 10. Bxf6 Nxf6 11. Qd3 Be7 12. Rad1 d4 13. Bxb7 O-O 14. Ne4 Rb8 15. Nxf6+ Bxf6 {½-½ (25) Mamedyarov,S (2765)-Ding,L (2799) Chess.com INT 2021}) 9... h6 {[%emt 0:06:43]} 10. Bxf6 {[%emt 0:01:03] The position is equal.} Nxf6 {[%emt 0:02:42]} 11. Qb5+ {[%emt 0:12:43]} Qd7 {[%emt 0:01:43]} 12. Nc3 {[%emt 0:00:19]} (12. Qxd7+ $11 {is superior.} Kxd7 13. f4 exf4 14. gxf4) 12... Rd8 {[%emt 0:06:32]} 13. Na5 {[%emt 0:09:06]} Qxb5 {[%emt 0:10:06]} 14. Nxb5 {[%emt 0:00:08]} Rd7 {[%emt 0:07:57]} (14... Bb4 $5 {[%cal Rb4a5]} 15. Nc7+ (15. Nxb7 $2 Rd7 $19) 15... Ke7 $11) 15. c4 {[%emt 0:18:45]} Bb4 {[%emt 0:15:33]} 16. cxd5 {[%emt 0:00:18]} Bxd5 {[%emt 0:00:30]} 17. Bxd5 {[%emt 0:01:00]} Nxd5 {[%emt 0:00:28]} 18. Nc4 {[%emt 0:01:15]} a6 {[%emt 0:01:50]} 19. Nba3 {[%emt 0:00:05]} (19. Nxe5 {keeps more tension.} axb5 20. Nxd7 Kxd7 21. Rad1) 19... f6 {[%emt 0:09:54]} 20. Rfd1 {[%emt 0:02:00]} (20. Nc2 $11 {keeps the balance.}) 20... b5 $17 {[%emt 0:01:18] Black keeps a firm grip on the game.} 21. e4 {[%emt 0:02:21]} bxc4 {[%emt 0:01:03]} 22. exd5 {[%emt 0:03:09]} Bxa3 {[%emt 0:00:54] Black is more active.} 23. bxa3 {[%emt 0:00:01][%mdl 4096] Endgame [#] KRR-KRR} Ke7 $1 {[%emt 0:00:42]} 24. Rab1 {[%emt 0:07:40]} Rc8 {[%emt 0:06:11]} 25. Kf1 {[%emt 0:06:26]} Rc5 {[%emt 0:02:40]} 26. Rbc1 {[%emt 0:03:16]} Kd6 {[%emt 0:00:36]} (26... Rcxd5 27. Rxd5 Rxd5 28. Rxc4 $15) (26... c3 27. Rd3 $17) 27. Rd2 {[%emt 0:00:43]} (27. Rc3 $17 {is a better defense.}) 27... Rdc7 {[%emt 0:01:17]} ({Weaker is} 27... Rxd5 28. Rdc2 $17) 28. Rdc2 {[%emt 0:02:42]} c3 {[%emt 0:02:06]} ({Stronger than} 28... Kxd5 29. f3) 29. Ke2 {[%emt 0:00:45]} Kxd5 {[%emt 0:00:57]} 30. f3 {[%emt 0:00:56]} f5 {[%emt 0:02:58]} 31. h4 {[%emt 0:01:23]} (31. Rd1+ {was called for.} Kc4 32. Rb1) 31... g6 $19 {[%emt 0:01:40]} 32. Ke3 {[%emt 0:00:53]} Rc4 {[%emt 0:01:14]} 33. Ke2 {[%emt 0:01:31]} (33. Rd1+ $142 Ke6 34. Rd8) 33... g5 {[%emt 0:02:32]} 34. hxg5 {[%emt 0:01:00]} hxg5 {[%emt 0:00:01]} 35. Rd1+ {[%emt 0:00:17]} Rd4 {[%emt 0:00:09] [#] White must now prevent ...Rh7.} 36. Rd3 $2 {[%emt 0:00:44]} (36. Rdc1) 36... Rxd3 {[%emt 0:00:20]} 37. Kxd3 {[%emt 0:00:00] KR-KR} e4+ {[%emt 0:00:29]} 38. fxe4+ {[%emt 0:00:01]} fxe4+ {[%emt 0:00:01] Black mates.} 39. Ke3 {[%emt 0:00:53]} Rf7 {[%emt 0:00:57]} 40. Rxc3 {[%emt 0:00:30]} Rf3+ {[%emt 0:00:04]} 41. Kd2 {[%emt 0:15:02]} Rxc3 {[%emt 0:15:08]} 42. Kxc3 {[%emt 0:00:13]} g4 {[%emt 0:00:52]} 43. a4 {[%emt 0:00:00]} a5 {Weighted Error Value: White=0.70/Black=0.08 (flawless)} 0-1

[Event "GER-ch Youth-U16 2022"]
[Site "Willingen"]
[Date "2022.06.10"]
[Round "8.16"]
[White "Weidenhoefer, Max"]
[Black "Beyer, Lorenz"]
[Result "1-0"]
[ECO "B32"]
[WhiteElo "1945"]
[BlackElo "1512"]
[Annotator "TA"]
[PlyCount "51"]
[EventDate "2022.06.05"]
[EventType "swiss"]
[EventRounds "9"]
[EventCountry "GER"]
[SourceTitle "playchess.com"]
[Source "ChessBase"]
[SourceQuality "1"]
[TimeControl "40/4500+30:900+30"]

{[%evp 18,51,82,64,105,84,117,119,278,129,120,136,294,295,293,271,283,281,383,379,504,510,553,553,547,536,568,563,567,514,570,558,644,641,687,612]} 1. e4 {[%emt 0:00:00]} c5 {[%emt 0:00:00]} 2. Nf3 {[%emt 0:00:00]} Nc6 {[%emt 0:00:00]} 3. d4 {[%emt 0:00:00]} cxd4 {[%emt 0:00:00]} 4. Nxd4 {[%emt 0:00:00]} d6 {[%emt 0:00:00]} 5. Nc3 {[%emt 0:00:00]} g6 {[%emt 0:00:00]} 6. Be3 {[%emt 0:00:00]} Bg7 {[%emt 0:00:00]} 7. Qd2 {[%emt 0:00:00]} Bd7 {[%emt 0:00:00]} 8. O-O-O {[%emt 0:00:00]} Nf6 {[%emt 0:04:35]} 9. f3 {[%emt 0:00:00]} a6 {[%emt 0:00:25]} 10. g4 {[%emt 0:00:00]} b5 {[%emt 0:04:25] B75: Sicilian Dragon: Yugoslav Attack, Miscellaneous.} 11. h4 {[%emt 0:03:10]} b4 {[%emt 0:01:53]} 12. Nd5 {[%emt 0:01:03] Strongly threatening Nxc6. White is more active.} Qa5 $2 {[%emt 0:29:58] [#]} (12... h5 $16) 13. Kb1 $146 {[%emt 0:11:52]} (13. Nxc6 $18 {is the precise move to win.} Bxc6 14. Nxb4) ({Predecessor:} 13. Nxc6 Bxc6 14. Qxb4 Qxb4 15. Nxb4 Bb7 16. h5 O-O 17. c3 a5 18. Nd3 Rfc8 19. h6 {1-0 (46) Solak,D (2457)-Tassopoulos,A Korinthos 1999}) 13... Nxd5 $16 {[%emt 0:07:16]} 14. Nxc6 {[%emt 0:00:18]} Nc3+ $2 {[%emt 0:03:50] [#]} (14... Bxc6 $16 {was called for.} 15. exd5 Ba4) 15. Qxc3 $3 $18 {[%emt 0:00:32][%mdl 512] Dancing on a razor blade.} Qxa2+ {[%emt 0:03:55]} 16. Kxa2 {[%emt 0:00:08][%cal Bb1a2,Ba2b2,Bb2c1,Bc1d2][%mdl 32]} bxc3 {[%emt 0:00:03]} 17. Nd4 {[%emt 0:01:23]} Rb8 {[%emt 0:00:54]} 18. bxc3 {[%emt 0:01:27][%cal Bb2c3,Bc3d4][%mdl 32]} Bxd4 {[%emt 0:01:08]} 19. cxd4 {[%emt 0:00:22] White is clearly winning.} Rb4 {[%emt 0:00:28]} 20. Rb1 {[%emt 0:01:32]} Ra4+ {[%emt 0:00:08]} 21. Kb2 {[%emt 0:00:16]} O-O {[%emt 0:00:10]} 22. Kc1 {[%emt 0:00:21]} Ra3 {[%emt 0:00:15]} 23. Bd3 {[%emt 0:00:24]} Rc8 {[%emt 0:00:11]} 24. Kd2 {[%emt 0:00:17]} Ra2 {[%emt 0:00:54]} 25. Ra1 {[%emt 0:00:27]} Rb2 {[%emt 0:00:17]} 26. Rhb1 {[%emt 0:00:12] Weighted Error Value: White=0.21 (precise) /Black=0.58} 1-0

[Event "GER-ch Youth-U16 2022"]
[Site "Willingen"]
[Date "2022.06.11"]
[Round "9.1"]
[White "Lutsko, Artem"]
[Black "Bakiev, Diyor"]
[Result "1/2-1/2"]
[ECO "A61"]
[WhiteElo "2392"]
[BlackElo "2157"]
[Annotator "TA"]
[PlyCount "102"]
[EventDate "2022.06.05"]
[EventType "swiss"]
[EventRounds "9"]
[EventCountry "GER"]
[SourceTitle "playchess.com"]
[Source "ChessBase"]
[SourceQuality "1"]
[TimeControl "40/4500+30:900+30"]

{[%evp 18,102,48,28,39,31,23,34,60,40,47,41,62,34,65,29,29,0,7,6,20,0,28,20,42,45,50,0,16,-8,0,2,14,-7,33,41,32,17,107,-67,-80,-73,-88,-71,-79,-75,-75,-159,-16,-19,-24,-18,0,0,9,-139,-135,-159,-159,-163,-147,-149,-114,-118,-112,-114,-27,-29,0,0,0,0,0,-41,-41,-37,-39,-37,0,0,0,0,0,0,0,0,11]} 1. d4 {[%emt 0:00:00]} Nf6 {[%emt 0:00:00]} 2. c4 {[%emt 0:00:00]} c5 {[%emt 0:00:00]} 3. d5 {[%emt 0:00:00]} e6 {[%emt 0:00:00]} 4. Nc3 {[%emt 0:00:00]} exd5 {[%emt 0:00:00]} 5. cxd5 {[%emt 0:00:00]} d6 {[%emt 0:00:00]} 6. Nf3 {[%emt 0:00:00]} g6 {[%emt 0:00:00]} 7. Bf4 {[%emt 0:00:00]} a6 {[%emt 0:00:00]} 8. a4 {[%emt 0:00:00]} Bg7 {[%emt 0:00:00]} 9. e3 {[%emt 0:00:00]} O-O {[%emt 0:00:00]} 10. h3 {[%emt 0:00:00]} Ne8 {[%emt 0:00:00] A61: Modern Benoni: Nf3 without early e4.} 11. Be2 {[%emt 0:00:00]} Nd7 {[%emt 0:00:00]} 12. O-O {[%emt 0:00:00]} Qe7 {[%emt 0:00:00] White is slightly better. The old main line.} 13. a5 {[%emt 0:00:00]} Rb8 {[%emt 0:00:00]} 14. Nd2 {[%emt 0:00:00]} Ne5 {[%emt 0:00:00]} 15. Bh2 {[%emt 0:00:00]} f5 {[%emt 0:00:00]} 16. Qc2 {[%emt 0:00:00]} (16. Qb3 $5 {[%cal Re2a6]}) 16... Nc7 {[%emt 0:00:00] [#]} 17. Rad1 $146 {[%emt 0:02:48]} ({Predecessor:} 17. Rae1 b5 18. axb6 Rxb6 19. f4 Nf7 20. e4 fxe4 21. Ndxe4 Bf5 22. Bg4 Bxg4 23. hxg4 {1-0 (44) Bocharov,D (2527)-Cheparinov,I (2531) Dos Hermanas 2004}) 17... b5 {[%emt 0:18:16]} 18. axb6 $1 {[%emt 0:00:10]} Rxb6 {[%emt 0:00:07]} 19. Rfe1 {[%emt 0:02:05]} Nb5 {[%emt 0:11:47]} 20. f4 {[%emt 0:06:56]} Nf7 {[%emt 0:00:41]} 21. Nc4 {[%emt 0:01:29]} Rb8 {[%emt 0:01:09]} 22. Nb1 {[%emt 0:03:02]} (22. Bg3 $14) 22... Bd7 {[%emt 0:18:29]} 23. Nbd2 {[%emt 0:01:04]} Nc7 {[%emt 0:02:38]} 24. Bf3 {[%emt 0:01:12]} Rb4 {[%emt 0:00:52]} 25. Bg3 {[%emt 0:09:22]} Rfb8 {[%emt 0:04:22][%cal Rg7b2]} 26. b3 {[%emt 0:07:50]} Nb5 {[%emt 0:03:55]} 27. Na5 {[%emt 0:04:05]} Qd8 {[%emt 0:05:54]} (27... Nc3 $11 {keeps the balance.}) 28. Ndc4 $2 {[%emt 0:06:59] [#]} (28. Nc6 $16 Bxc6 29. dxc6) 28... Na3 $1 $36 {[%emt 0:02:24][%mdl 2048] Keeping White busy.} 29. Nxa3 {[%emt 0:00:03]} Qxa5 {[%emt 0:00:05]} 30. Nc4 {[%emt 0:00:02]} Qc7 {[%emt 0:04:21]} 31. Rb1 {[%emt 0:01:11] [#]} a5 $1 {[%emt 0:01:18]} 32. Qa2 {[%emt 0:05:02]} (32. Kh2 $142) 32... a4 {[%emt 0:01:21]} (32... Qb7 $17 {And now ...a4 would win.} 33. Qd2 a4) 33. bxa4 $11 {[%emt 0:01:14]} Bxa4 {[%emt 0:03:40]} 34. Rxb4 {[%emt 0:00:47]} Rxb4 {[%emt 0:01:51]} 35. Rb1 {[%emt 0:01:07]} Qb8 {[%emt 0:01:11]} 36. Rc1 {[%emt 0:04:22] [#]} (36. Rxb4 $11 Qxb4 37. Bh4) 36... Bb3 $1 $17 {[%emt 0:01:09]} 37. Qe2 {[%emt 0:00:29]} Qb5 {[%emt 0:01:14] Against Na5} 38. Nd2 {[%emt 0:01:58]} Qxe2 {[%emt 0:00:22]} 39. Bxe2 {[%emt 0:00:03]} Bxd5 {[%emt 0:00:15]} 40. Be1 {[%emt 0:00:34]} Rb2 {[%emt 0:04:52]} 41. g4 {[%emt 0:16:53]} Be4 {[%emt 0:00:00]} ({Better is} 41... Be6 $17 42. gxf5 gxf5) 42. Bc4 $11 {[%emt 0:00:00]} Rc2 {[%emt 0:00:00]} 43. Rb1 {[%emt 0:00:00]} ({Much worse is} 43. Rxc2 Bxc2 44. Bd5 Kf8 $17) 43... Bb2 $1 {[%emt 0:03:19][%cal Oc2d2] Hoping for ...Rxd2!} 44. Nxe4 {[%emt 0:00:00]} Rxc4 {[%emt 0:02:21]} 45. Nxd6 {[%emt 0:00:00]} Nxd6 {[%emt 0:01:09]} 46. Rxb2 {[%emt 0:00:00][%mdl 4096] Endgame KRB-KRN} Rc1 {[%emt 0:00:18]} 47. Kf2 {[%emt 0:00:00]} c4 {[%emt 0:02:14][%cal Bc5c4,Bc4c3][%mdl 32]} 48. Ke2 {[%emt 0:00:00] The position is equal.} c3 {[%emt 0:01:48]} 49. Rb6 {[%emt 0:00:00]} Ne4 {[%emt 0:01:11]} 50. Rb7 {[%emt 0:00:00]} ({But not} 50. Rc6 Kf7 $17) 50... Rc2+ {[%emt 0:03:14]} 51. Kd3 {[%emt 0:00:00]} Rh2 {[%emt 0:01:54] Whites escaped into a draw.  Weighted Error Value: White=0.23 (precise) /Black=0.24 (precise)} 1/2-1/2

[Event "GER-ch Youth-U16 2022"]
[Site "Willingen"]
[Date "2022.06.11"]
[Round "9.2"]
[White "Petrovskyi, Vadym"]
[Black "Farokhi, Keyvan"]
[Result "1/2-1/2"]
[ECO "B92"]
[WhiteElo "2330"]
[BlackElo "2360"]
[Annotator "TA"]
[PlyCount "66"]
[EventDate "2022.06.05"]
[EventType "swiss"]
[EventRounds "9"]
[EventCountry "GER"]
[SourceTitle "playchess.com"]
[Source "ChessBase"]
[SourceQuality "1"]
[TimeControl "40/4500+30:900+30"]

{[%evp 15,66,0,9,5,10,0,12,7,8,12,35,29,29,39,87,89,114,108,109,64,107,13,159,165,156,78,57,77,48,60,69,56,43,61,68,0,0,0,68,0,-15,-11,-8,-11,-11,-8,-8,-16,0,-8,-8,-8,-9]} 1. e4 {[%emt 0:00:00]} c5 {[%emt 0:00:00]} 2. Nf3 {[%emt 0:00:00]} d6 {[%emt 0:00:00]} 3. d4 {[%emt 0:00:00]} cxd4 {[%emt 0:00:00]} 4. Nxd4 {[%emt 0:00:00]} Nf6 {[%emt 0:00:00]} 5. Nc3 {[%emt 0:00:00]} a6 {[%emt 0:00:00]} 6. Be2 {[%emt 0:00:00]} e5 {[%emt 0:00:00]} 7. Nb3 {[%emt 0:00:00]} Be6 {[%emt 0:00:00]} 8. O-O {[%emt 0:00:00]} Be7 {[%emt 0:00:00]} 9. Re1 {[%emt 0:00:00] B92: Sicilian Najdorf: 6 Be2.} O-O {[%emt 0:00:00]} 10. Bf3 {[%emt 0:00:00]} Nbd7 {[%emt 0:00:44]} 11. a4 {[%emt 0:00:00]} Qc7 {[%emt 0:01:22]} 12. a5 {[%emt 0:01:06]} b5 {[%emt 0:03:38]} 13. axb6 $1 {[%emt 0:04:06]} Nxb6 {[%emt 0:00:35]} 14. Na5 {[%emt 0:03:48]} Rfd8 {[%emt 0:07:49]} (14... Nc4 $14 {feels stronger.} 15. Nxc4 Bxc4) 15. Nd5 $16 {[%emt 0:07:00]} Nfxd5 {[%emt 0:02:37]} 16. exd5 {[%emt 0:00:01]} Bd7 {[%emt 0:00:16] [#]} 17. Be3 $146 {[%emt 0:20:13]} ({Predecessor:} 17. b3 f5 18. c4 Bf6 19. Ra2 e4 20. Be2 Na4 21. bxa4 Qxa5 22. Bd2 Qc5 23. Be3 {1-0 (56) Kayumov,D (2463)-Surendran,N (2146) Dubai 2011}) 17... f5 {[%emt 0:10:43]} 18. c4 {[%emt 0:06:47]} (18. Nc6 $16 Bxc6 19. dxc6) 18... e4 {[%emt 0:11:17]} (18... Nxc4 $11 {keeps the balance.} 19. Nc6 Nxe3 20. Rxe3 Re8) 19. Be2 {[%emt 0:00:39]} Bf6 {[%emt 0:00:09]} 20. c5 {[%emt 0:11:05]} (20. Bd4 $142) 20... dxc5 {[%emt 0:02:22][%cal Od7e6]} 21. d6 {[%emt 0:00:03]} Qb8 {[%emt 0:00:16]} 22. Bxc5 {[%emt 0:00:50]} Kh8 {[%emt 0:02:01]} 23. Ra3 {[%emt 0:09:51] [#] Threatens to win with Rb3.} Rc8 {[%emt 0:05:00]} 24. b4 {[%emt 0:03:59]} Be6 {[%emt 0:02:01]} 25. g4 {[%emt 0:09:10]} (25. Qd2 $1 $14) 25... Nd7 $1 $11 {[%emt 0:07:30]} 26. gxf5 {[%emt 0:00:13]} Bg8 {[%emt 0:00:14]} (26... Bxf5 $11 27. Rb3 Rf8) 27. Bd4 {[%emt 0:03:28] 0x0.00207b53f4a8dp-1022s more active pieces.} ({White should play} 27. Bc4 $1 $14) 27... Qxb4 {[%emt 0:05:58] The position is equal.} 28. Ra4 {[%emt 0:00:12]} Qxd6 {[%emt 0:00:07] ...Nc5 is the strong threat.} 29. Bxf6 {[%emt 0:00:07][%mdl 64] [#] Pin} Qxd1 {[%emt 0:00:07]} 30. Bxg7+ $1 {[%emt 0:00:03]} Kxg7 {[%emt 0:00:02]} 31. Rxd1 {[%emt 0:00:16]} Nf6 {[%emt 0:04:11]} 32. Bc4 {[%emt 0:04:15]} Rc5 {[%emt 0:01:52]} 33. Be6 {[%emt 0:00:02]} Bxe6 {[%emt 0:03:42] Weighted Error Value: White=0.20 (precise) /Black=0.20 (precise)} 1/2-1/2

[Event "GER-ch Youth-U16 2022"]
[Site "Willingen"]
[Date "2022.06.11"]
[Round "9.3"]
[White "Laux, Dominik"]
[Black "Bui, Bao Anh Le"]
[Result "1-0"]
[ECO "B24"]
[WhiteElo "2263"]
[BlackElo "2127"]
[Annotator "TA"]
[PlyCount "79"]
[EventDate "2022.06.05"]
[EventType "swiss"]
[EventRounds "9"]
[EventCountry "GER"]
[SourceTitle "playchess.com"]
[Source "ChessBase"]
[SourceQuality "1"]
[TimeControl "40/4500+30:900+30"]

{[%evp 9,79,48,54,20,37,28,38,41,74,69,75,53,91,94,101,90,94,94,96,87,93,90,99,102,110,95,88,79,89,91,103,93,92,96,91,83,122,78,121,107,153,152,159,148,347,338,336,318,279,228,384,401,371,370,393,389,410,394,387,375,445,435,649,509,644,643,637,625,629,580,558,229]} 1. e4 {[%emt 0:00:00]} c5 {[%emt 0:00:00]} 2. Nc3 {[%emt 0:00:00]} Nc6 {[%emt 0:00:00]} 3. Nf3 {[%emt 0:00:00]} e5 {[%emt 0:00:00]} 4. Bc4 {[%emt 0:00:00]} g6 {[%emt 0:00:00]} 5. d3 {[%emt 0:00:00]} h6 {[%emt 0:00:00]} 6. Ng1 {[%emt 0:00:00] B30: Sicilian: 2...Nc6 3 Bb5, lines without ...g6.} Bg7 {[%emt 0:08:15] [#]} 7. f4 $146 {[%emt 0:00:00]} ({Predecessor:} 7. f3 d6 8. Nge2 Nge7 9. O-O O-O 10. Be3 Kh8 11. f4 exf4 12. Nxf4 Kh7 13. Qd2 {1-0 (37) Navara,D (2719)-Nguyen,T (2569) Pardubice 2020}) 7... d6 {[%emt 0:04:31]} 8. Nf3 {[%emt 0:00:00] White is slightly better.} Nge7 {[%emt 0:06:17]} 9. fxe5 {[%emt 0:00:00]} dxe5 {[%emt 0:03:21]} 10. O-O {[%emt 0:00:50]} O-O {[%emt 0:01:05] [#]} 11. Qe1 $1 {[%emt 0:03:13] Hoping for Qh4.} Nd4 {[%emt 0:10:12] [#]} 12. Qh4 $1 {[%emt 0:12:11]} Nec6 {[%emt 0:09:12] Strongly threatening ...Nxf3+.} 13. Qxd8 {[%emt 0:02:38]} Nxd8 {[%emt 0:00:16]} 14. Nxd4 {[%emt 0:12:39]} cxd4 {[%emt 0:05:03]} 15. Nd5 {[%emt 0:02:16]} Be6 {[%emt 0:06:22]} 16. Bd2 {[%emt 0:04:38] 0x0.002228b89330dp-1022s more active pieces.} Bxd5 {[%emt 0:08:05]} 17. Bxd5 {[%emt 0:03:12]} Rc8 {[%emt 0:03:54]} 18. Bb3 {[%emt 0:04:58]} Ne6 {[%emt 0:03:37]} 19. Rf2 {[%emt 0:06:49]} Rc7 {[%emt 0:05:49]} 20. Raf1 {[%emt 0:02:19]} Re8 {[%emt 0:01:09]} 21. h4 {[%emt 0:07:52]} h5 {[%emt 0:04:30]} 22. Kh2 {[%emt 0:02:29][%cal Bg1h2,Bh2h3,Bh3g4][%mdl 32]} b6 {[%emt 0:01:29]} 23. a4 {[%emt 0:04:41]} a5 {[%emt 0:01:22]} 24. Kh3 {[%emt 0:02:08]} Rd7 {[%emt 0:01:05]} (24... Nf4+ $142 25. Bxf4 exf4) 25. g4 $16 {[%emt 0:01:27]} hxg4+ {[%emt 0:00:42]} 26. Kxg4 {[%emt 0:00:02]} f6 $2 {[%emt 0:00:56] Loses the game.} (26... Kf8 $16 27. Bc4 Rc7) 27. Rxf6 $18 {[%emt 0:07:23]} Bxf6 {[%emt 0:00:06]} 28. Rxf6 {[%emt 0:00:03]} Rde7 {[%emt 0:00:51]} 29. Rxg6+ {[%emt 0:00:54]} Kh7 $2 {[%emt 0:00:47]} (29... Rg7 {might work better.} 30. Kf5 (30. Bxe6+ Rxe6 31. Rg5 Rxg5+ 32. hxg5 Rc6 $11) 30... Rxg6 31. Kxg6 Kf8) 30. Rh6+ {[%emt 0:02:24]} Kg7 {[%emt 0:00:09]} 31. h5 {[%emt 0:01:00]} Nc5 {[%emt 0:01:08]} 32. Bc4 {[%emt 0:01:48]} Rf8 {[%emt 0:00:29]} 33. Rg6+ {[%emt 0:01:27]} Kh7 {[%emt 0:00:12]} 34. Bg5 {[%emt 0:00:37]} Rb7 {[%emt 0:00:46]} 35. b3 {[%emt 0:01:11] White is clearly winning.} Rf2 {[%emt 0:00:31]} (35... Rfb8 $142 36. Rd6 Rf8 37. Rh6+ Kg7) 36. Bg8+ {[%emt 0:01:14] A strong pair of Bishops.} Kh8 {[%emt 0:00:07]} 37. Kg3 {[%emt 0:00:52]} Rf8 {[%emt 0:00:55]} 38. Bd5 {[%emt 0:00:35]} Rg7 {[%emt 0:00:20]} 39. Rh6+ {[%emt 0:00:17]} Rh7 {[%emt 0:00:09]} 40. Bf6+ {[%emt 0:00:12] Weighted Error Value: White=0.04 (flawless) /Black=0.32} 1-0